fUST/lending_fUST_20250108
["ID","MTS","AMOUNT","RATE_DAILY","PERIOD"]
[348053141,1736284240086,-615.23,0.00020273,3]
[348053143,1736284240096,-500.0,0.00020273,3]
[348053144,1736284240106,-320.51505322,0.00020273,3]
[348053147,1736284240115,-500.0,0.00020273,3]
[348053149,1736284240124,-595.6,0.00020273,3]
[348053151,1736284240134,-565.54,0.00020273,3]
[348053153,1736284240143,-500.0,0.00020273,3]
[348053155,1736284240152,-514.17228202,0.00020273,3]
[348053157,1736284240162,-500.0,0.00020273,3]
[348053159,1736284240171,-500.0,0.00020273,3]
[348053161,1736284240181,-500.0,0.00020273,3]
[348053163,1736284240190,-500.0,0.00020273,3]
[348053166,1736284240200,-572.0,0.00020273,3]
[348053168,1736284240209,-500.0,0.00020273,3]
[348053170,1736284240219,-707.3,0.00020273,3]
[348053172,1736284240229,-500.0,0.00020273,3]
[348053174,1736284240239,-500.0,0.00020273,3]
[348053176,1736284240248,-400.15963507,0.00020273,3]
[348053178,1736284240259,-500.0,0.00020273,3]
[348053179,1736284240269,-571.17,0.00020273,3]
[348053182,1736284240279,-533.50343683,0.00020273,3]
[348053184,1736284240290,-500.0,0.00020273,3]
[348053186,1736284240299,-500.0,0.00020273,3]
[348053188,1736284240309,-500.0,0.00020273,3]
[348053190,1736284240320,-500.0,0.00020273,3]
[348053192,1736284240331,-500.0,0.00020273,3]
[348053194,1736284240340,-500.0,0.00020273,3]
[348053196,1736284240350,-500.0,0.00020273,3]
[348053198,1736284240359,-1111.35,0.00020273,3]
[348053200,1736284240370,-500.0,0.00020273,3]
[348053202,1736284240384,-500.0,0.00020273,3]
[348053204,1736284240399,-514.75,0.00020273,3]
[348053206,1736284240409,-500.0,0.00020273,3]
[348053208,1736284240419,-517.55,0.00020273,3]
[348053210,1736284240430,-500.0,0.00020273,3]
[348053212,1736284240440,-500.0,0.00020273,3]
[348053214,1736284240450,-513.60002976,0.00020273,3]
[348053216,1736284240460,-500.0,0.00020273,3]
[348053218,1736284240471,-504.3,0.00020273,3]
[348053220,1736284240480,-9430.96,0.00020273,3]
[348053222,1736284240490,-306.0,0.00020274,2]
[348053224,1736284240502,-2483.65,0.000203,2]
[348053226,1736284240511,-152.32942,0.0002044,2]
[348053228,1736284240521,-152.32942,0.0002044,2]
[348053231,1736284240531,-1669.04,0.00020441,3]
[348053233,1736284240541,-152.32942,0.00020442,2]
[348053235,1736284240552,-152.32941,0.00020442,2]
[348053237,1736284240564,-212.61,0.00020442,3]
[348053239,1736284240574,-451.49,0.00020442,3]
[348053240,1736284240584,-2170.44,0.00020446,3]
[348053243,1736284240595,-500.0,0.00020446,3]
[348053245,1736284240604,-185.182318,0.00020447,2]
[348053247,1736284240614,-8093.28,0.000205,2]
[348053249,1736284240624,-510.78092491,0.00020545,3]
[348053251,1736284240635,-500.0,0.00020547,3]
[348053253,1736284240646,-500.0,0.00020547,3]
[348053255,1736284240656,-500.0,0.00020547,3]
[348053257,1736284240666,-500.0,0.00020547,3]
[348053259,1736284240676,-444.93,0.00020547,3]
[348053261,1736284240689,-500.0,0.00020547,3]
[348053263,1736284240701,-500.0,0.00020547,3]
[348053265,1736284240711,-432.14,0.00020547,3]
[348053267,1736284240721,-707.3,0.00020547,3]
[348053270,1736284240731,-521.38,0.00020547,3]
[348053271,1736284240741,-500.0,0.00020547,3]
[348053273,1736284240753,-171.2,0.00020547,3]
[348053275,1736284240763,-571.17,0.00020547,3]
[348053277,1736284240773,-500.0,0.00020547,3]
[348053279,1736284240783,-500.0,0.00020547,3]
[348053282,1736284240794,-500.0,0.00020547,3]
[348053284,1736284240804,-500.0,0.00020547,3]
[348053286,1736284240813,-500.0,0.00020547,3]
[348053288,1736284240822,-620.88,0.00020547,3]
[348053290,1736284240832,-500.0,0.00020547,3]
[348053292,1736284240841,-1111.35,0.00020547,3]
[348053294,1736284240851,-262.64,0.00020547,3]
[348053296,1736284240861,-500.0,0.00020547,3]
[348053298,1736284240870,-514.75,0.00020547,3]
[348053300,1736284240880,-586.73285144,0.00020547,3]
[348053302,1736284240889,-517.55,0.00020547,3]
[348053304,1736284240899,-500.0,0.00020547,3]
[348053306,1736284240908,-500.0,0.00020547,3]
[348053308,1736284240917,-500.0,0.00020547,9]
[348053310,1736284240927,-500.0,0.00020547,3]
[348053312,1736284240937,-9430.96,0.00020547,3]
[348053314,1736284240946,-7203.4,0.000206,2]
[348053317,1736284240956,-151.0,0.00020639,2]
[348053319,1736284240966,-153.40078403,0.00020712,2]
[348053321,1736284240975,-1669.04,0.00020715,3]
[348053323,1736284240985,-151.0,0.00020716,2]
[348053325,1736284240996,-151.0,0.00020719,2]
[348053327,1736284241009,-2170.44,0.0002072,3]
[348053329,1736284241018,-510.85,0.0002072,3]
[348053331,1736284241028,-344.6445791,0.0002079,2]
[348053334,1736284241124,-650.638,0.000208,2]
[348053335,1736284241134,-151.0,0.00020818,2]
[348053336,1736284241143,-500.0,0.00020821,3]
[348053337,1736284241155,-379.26,0.00020821,3]
[348053338,1736284241165,-500.0,0.00020821,3]
[348053339,1736284241175,-500.0,0.00020821,3]
[348053340,1736284241184,-332.74,0.00020821,3]
[348053341,1736284241193,-500.0,0.00020821,3]
[348053343,1736284241202,-707.3,0.00020821,3]
[348053345,1736284241212,-500.0,0.00020821,3]
[348053347,1736284241220,-571.17,0.00020821,3]
[348053349,1736284241230,-500.0,0.00020821,3]
[348053351,1736284241239,-167.04,0.00020821,3]
[348053353,1736284241248,-635.12,0.00020821,3]
[348053355,1736284241260,-500.0,0.00020821,3]
[348053357,1736284241270,-227.52,0.00020821,3]
[348053359,1736284241279,-500.0,0.00020821,3]
[348053361,1736284241289,-1111.35,0.00020821,3]
[348053363,1736284241298,-500.0,0.00020821,3]
[348053365,1736284241307,-514.75,0.00020821,3]
[348053367,1736284241317,-517.55,0.00020821,3]
[348053369,1736284241326,-500.0,0.00020821,3]
[348053371,1736284241335,-500.0,0.00020821,3]
[348053373,1736284241345,-500.0,0.00020821,3]
[348053375,1736284241354,-9430.96,0.00020821,3]
[348053377,1736284241364,-420.0,0.00020898,2]
[348053379,1736284241374,-150.157,0.0002095,2]
[348053381,1736284241384,-1160.58,0.0002096,2]
[348053383,1736284241393,-535.0,0.0002096,2]
[348053385,1736284241402,-2317.0,0.0002096,2]
[348053387,1736284241411,-394.0,0.0002096,2]
[348053390,1736284241421,-1669.04,0.00020989,3]
[348053392,1736284241431,-2170.44,0.00020994,3]
[348053394,1736284241440,-3871.75629933,0.00021,2]
[348053396,1736284241449,-4547.51912527,0.00021,2]
[348053398,1736284241458,-150.0,0.00021,2]
[348053400,1736284241468,-151.0,0.00021095,2]
[348053402,1736284241476,-500.0,0.00021095,3]
[348053404,1736284241487,-500.0,0.00021095,3]
[348053406,1736284241496,-500.0,0.00021095,3]
[348053408,1736284241507,-500.0,0.00021095,3]
[348053410,1736284241516,-707.3,0.00021095,3]
[348053412,1736284241526,-500.0,0.00021095,3]
[348053414,1736284241535,-571.17,0.00021095,3]
[348053416,1736284241544,-500.0,0.00021095,3]
[348053418,1736284241554,-500.0,0.00021095,3]
[348053419,1736284241567,-500.0,0.00021095,3]
[348053422,1736284241576,-1111.35,0.00021095,3]
[348053424,1736284241588,-398.78,0.00021095,3]
[348053426,1736284241598,-514.75,0.00021095,3]
[348053428,1736284241607,-517.55,0.00021095,3]
[348053430,1736284241617,-175.98560244,0.00021095,3]
[348053432,1736284241626,-500.0,0.00021095,3]
[348053434,1736284241635,-500.0,0.00021095,3]
[348053436,1736284241645,-9430.96,0.00021095,3]
[348053438,1736284241654,-151.0,0.00021227,2]
[348053440,1736284241663,-500.0,0.00021232,11]
[348053442,1736284241672,-1200.0,0.00021252,2]
[348053444,1736284241682,-153.40078403,0.00021257,2]
[348053446,1736284241691,-1669.04,0.00021263,3]
[348053448,1736284241701,-151.0,0.00021264,2]
[348053450,1736284241710,-2170.44,0.00021268,3]
[348053452,1736284241720,-151.0,0.00021369,2]
[348053454,1736284241729,-500.0,0.00021369,3]
[348053456,1736284241739,-500.0,0.00021369,3]
[348053458,1736284241748,-422.56694582,0.00021369,3]
[348053460,1736284241764,-500.0,0.00021369,3]
[348053462,1736284241773,-707.3,0.00021369,3]
[348053464,1736284241782,-500.0,0.00021369,3]
[348053466,1736284241793,-571.17,0.00021369,3]
[348053468,1736284241803,-344.78,0.00021369,3]
[348053470,1736284241812,-500.0,0.00021369,3]
[348053472,1736284241821,-500.0,0.00021369,3]
[348053474,1736284241830,-1111.35,0.00021369,3]
[348053476,1736284241839,-514.75,0.00021369,3]
[348053478,1736284241849,-517.55,0.00021369,3]
[348053480,1736284241859,-500.0,0.00021369,3]
[348053482,1736284241868,-500.0,0.00021369,3]
[348053484,1736284241878,-9430.96,0.00021369,3]
[348053486,1736284241887,-1669.04,0.00021537,3]
[348053488,1736284241897,-2170.44,0.00021542,3]
[348053490,1736284241906,-6235.0,0.000216,4]
[348053492,1736284241915,-151.0,0.0002164,2]
[348053494,1736284241925,-500.0,0.00021643,3]
[348053496,1736284241934,-500.0,0.00021643,3]
[348053498,1736284241943,-500.0,0.00021643,3]
[348053500,1736284241952,-341.3331146,0.00021643,3]
[348053502,1736284241962,-707.3,0.00021643,3]
[348053505,1736284241974,-571.17,0.00021643,3]
[348053507,1736284241983,-648.20272243,0.00021643,3]
[348053508,1736284241993,-500.0,0.00021643,3]
[348053511,1736284242006,-1111.35,0.00021643,3]
[348053513,1736284242015,-514.75,0.00021643,3]
[348053515,1736284242024,-517.55,0.00021643,3]
[348053516,1736284242033,-205.56,0.00021643,3]
[348053519,1736284242043,-500.0,0.00021643,3]
[348053521,1736284242052,-9430.96,0.00021643,3]
[348053522,1736284242061,-153.40078403,0.00021802,2]
[348053524,1736284242071,-1669.04,0.00021811,3]
[348053527,1736284242080,-2170.44,0.00021816,3]
[348053529,1736284242089,-2000.0,0.000219,2]
[348053531,1736284242098,-151.0,0.00021912,2]
[348053532,1736284242107,-151.0,0.00021912,2]
[348053535,1736284242117,-5707.29558905,0.00021917,3]
[348053536,1736284242126,-486.85,0.00021917,3]
[348053538,1736284242136,-555.08170336,0.00021917,3]
[348053540,1736284242146,-500.0,0.00021917,3]
[348053543,1736284242155,-707.3,0.00021917,3]
[348053545,1736284242165,-571.17,0.00021917,3]
[348053547,1736284242174,-256.18044023,0.00021917,3]
[348053549,1736284242183,-1111.35,0.00021917,3]
[348053551,1736284242193,-514.75,0.00021917,3]
[348053553,1736284242202,-517.55,0.00021917,3]
[348053555,1736284242211,-500.0,0.00021917,13]
[348053557,1736284242220,-347.35229086,0.00021917,3]
[348053559,1736284242230,-9430.96,0.00021917,3]
[348053561,1736284242239,-2726.08743547,0.00021969,2]
[348053563,1736284242249,-1000.0,0.0002198,7]
[348053565,1736284242262,-150.21,0.0002198,7]
[348053567,1736284242272,-150.21,0.0002198,7]
[348053569,1736284242282,-150.15,0.0002198,7]
[348053571,1736284242291,-500.0,0.0002198,7]
[348053573,1736284242300,-150.27,0.0002198,7]
[348053575,1736284242310,-150.03,0.0002198,7]
[348053577,1736284242319,-3300.64839704,0.00022,15]
[348053579,1736284242328,-40955.96854011,0.00022,7]
[348053581,1736284242338,-1000.0,0.00022,22]
[348053583,1736284242347,-1000.0,0.00022,5]
[348053585,1736284242356,-5707.29558905,0.00022,7]
[348053587,1736284242365,-5707.29558905,0.00022,7]
[348053589,1736284242374,-5707.29558905,0.00022,7]
[348053591,1736284242383,-151.0,0.00022,7]
[348053593,1736284242393,-151.0,0.00022,7]
[348053595,1736284242402,-9476.26922596,0.00022,7]
[348053597,1736284242412,-151.0,0.00022,7]
[348053599,1736284242421,-150.0,0.00022,2]
[348053601,1736284242431,-527.0,0.00022,2]
[348053603,1736284242440,-1669.04,0.00022085,3]
[348053605,1736284242450,-2170.44,0.0002209,3]
[348053607,1736284242459,-2483.65,0.000221,14]
[348053609,1736284242468,-8093.28,0.000221,14]
[348053611,1736284242477,-2726.08743547,0.00022107,2]
[348053613,1736284242487,-5000.0,0.00022168,7]
[348053615,1736284242496,-5707.29558905,0.00022191,3]
[348053617,1736284242508,-5707.29558905,0.00022191,3]
[348053619,1736284242518,-500.0,0.00022191,3]
[348053621,1736284242527,-707.3,0.00022191,3]
[348053623,1736284242536,-571.17,0.00022191,3]
[348053625,1736284242545,-1111.35,0.00022191,3]
[348053627,1736284242555,-514.75,0.00022191,3]
[348053629,1736284242566,-517.55,0.00022191,3]
[348053631,1736284242576,-9430.96,0.00022191,3]
[348053633,1736284242587,-527.0,0.00022192,2]
[348053635,1736284242596,-2726.08743547,0.00022245,2]
[348053637,1736284242607,-151.0,0.00022245,7]
[348053639,1736284242617,-500.0,0.00022254,7]
[348053641,1736284242626,-151.0,0.00022302,7]
[348053643,1736284242637,-153.40078403,0.00022346,2]
[348053645,1736284242646,-1669.04,0.00022359,3]
[348053647,1736284242656,-2170.44,0.00022364,3]
[348053649,1736284242665,-2726.08743547,0.00022383,2]
[348053651,1736284242674,-151.0,0.00022465,7]
[348053653,1736284242685,-500.0,0.00022465,3]
[348053656,1736284242695,-707.3,0.00022465,3]
[348053658,1736284242704,-571.17,0.00022465,3]
[348053660,1736284242714,-1111.35,0.00022465,3]
[348053661,1736284242725,-514.75,0.00022465,3]
[348053662,1736284242734,-517.55,0.00022465,3]
[348053663,1736284242743,-9430.96,0.00022465,3]
[348053664,1736284242753,-20000.6065868,0.000225,2]
[348053665,1736284242762,-2726.08743547,0.00022521,2]
[348053666,1736284242771,-500.0,0.00022528,7]
[348053667,1736284242781,-160.0,0.00022552,5]
[348053668,1736284242790,-5448.36355997,0.0002258,60]
[348053669,1736284242799,-7203.4,0.000226,2]
[348053670,1736284242808,-500.0,0.00022602,15]
[348053671,1736284242817,-1669.04,0.00022633,3]
[348053672,1736284242827,-2170.44,0.00022638,3]
[348053673,1736284242836,-2726.08743547,0.00022659,2]
[348053674,1736284242845,-151.0,0.00022659,7]
[348053675,1736284242854,-151.0,0.00022734,7]
[348053676,1736284242863,-247.95329512,0.00022739,3]
[348053677,1736284242873,-707.3,0.00022739,3]
[348053678,1736284242882,-571.17,0.00022739,3]
[348053679,1736284242891,-1111.35,0.00022739,3]
[348053680,1736284242901,-514.75,0.00022739,3]
[348053681,1736284242910,-517.55,0.00022739,3]
[348053682,1736284242919,-9430.96,0.00022739,3]
[348053683,1736284242929,-10323.00292438,0.0002277,2]
[348053684,1736284242938,-587.0,0.00022775,2]
[348053685,1736284242947,-2726.08743547,0.00022797,2]
[348053686,1736284242957,-2038.68,0.000228,30]
[348053687,1736284242966,-500.0,0.00022802,7]
[348053688,1736284242975,-151.0,0.00022887,7]
[348053689,1736284242985,-5773.00310879,0.00022891,2]
[348053690,1736284242994,-153.40078403,0.00022891,2]
[348053691,1736284243004,-169.93029743,0.00022891,7]
[348053693,1736284243013,-169.93029743,0.00022891,7]
[348053695,1736284243022,-169.93029743,0.00022891,7]
[348053697,1736284243032,-169.93029743,0.00022891,7]
[348053699,1736284243041,-169.93029743,0.00022891,7]
[348053701,1736284243050,-169.93029743,0.00022891,7]
[348053703,1736284243060,-169.93029743,0.00022891,7]
[348053704,1736284243069,-169.93029743,0.00022891,7]
[348053705,1736284243078,-169.93029743,0.00022891,7]
[348053706,1736284243087,-169.93029743,0.00022891,7]
[348053707,1736284243097,-169.93029743,0.00022891,7]
[348053708,1736284243106,-169.93029743,0.00022891,7]
[348053709,1736284243115,-169.93029743,0.00022891,7]
[348053710,1736284243125,-169.93029743,0.00022891,7]
[348053711,1736284243134,-169.93029743,0.00022891,7]
[348053713,1736284243143,-169.93029743,0.00022891,7]
[348053715,1736284243155,-169.93029743,0.00022891,7]
[348053716,1736284243164,-169.93029743,0.00022891,7]
[348053718,1736284243173,-169.93029743,0.00022891,7]
[348053720,1736284243183,-169.93,0.00022891,7]
[348053721,1736284243192,-254.89544614,0.00022891,7]
[348053722,1736284243201,-254.89544614,0.00022891,7]
[348053725,1736284243211,-254.89544614,0.00022891,7]
[348053729,1736284243220,-254.89544614,0.00022891,7]
[348053733,1736284243229,-254.89544614,0.00022891,7]
[348053736,1736284243239,-254.89544614,0.00022891,7]
[348053738,1736284243248,-254.89544614,0.00022891,7]
[348053740,1736284243258,-254.89544614,0.00022891,7]
[348053742,1736284243267,-254.89544614,0.00022891,7]
[348053744,1736284243277,-254.89544614,0.00022891,7]
[348053746,1736284243286,-254.89544614,0.00022891,7]
[348053748,1736284243295,-254.89544614,0.00022891,7]
[348053751,1736284243305,-254.89544614,0.00022891,7]
[348053754,1736284243315,-254.89544614,0.00022891,7]
[348053756,1736284243324,-254.89544614,0.00022891,7]
[348053758,1736284243333,-254.89544614,0.00022891,7]
[348053760,1736284243343,-254.89544614,0.00022891,7]
[348053762,1736284243352,-254.89544614,0.00022891,7]
[348053763,1736284243361,-254.89544614,0.00022891,7]
[348053764,1736284243370,-254.89,0.00022891,7]
[348053765,1736284243380,-2000.0,0.000229,2]
[348053766,1736284243389,-1669.04,0.00022907,3]
[348053767,1736284243399,-2170.44,0.00022912,3]
[348053768,1736284243407,-2726.08743547,0.00022934,2]
[348053769,1736284243417,-500.0,0.00022973,2]
[348053770,1736284243427,-500.0,0.00022973,2]
[348053771,1736284243436,-500.0,0.00022973,2]
[348053772,1736284243446,-500.0,0.00022973,2]
[348053773,1736284243455,-166.31288919,0.00022973,2]
[348053774,1736284243465,-528005.64177448,0.00022991,10]
[348053776,1736284243796,-4298.4,0.00022991,10]
[348053777,1736284243809,-5300.0,0.00022991,10]
[348053778,1736284243821,-40351.7559365,0.00022991,10]
[348053779,1736284243832,-316.3148958,0.00022991,10]
[348053780,1736284243844,-6492.95283703,0.00022991,10]
[348053781,1736284243856,-135329.26957514,0.00022991,10]
[348053782,1736284243868,-4633.70808809,0.00022991,10]
[348053783,1736284243879,-6295.74867146,0.00022991,10]
[348053784,1736284243892,-1649.302789,0.00022991,10]
[348053785,1736284243903,-1929.35351999,0.00022991,10]
[348053786,1736284243921,-25779.6257446,0.00022991,10]
[348053787,1736284243933,-4305.84805776,0.00022991,10]
[348053788,1736284243945,-96771.81830825,0.00022991,10]
[348053789,1736284243957,-17858.23177652,0.00022991,10]
[348053790,1736284243978,-6773.99999976,0.00022991,10]
[348053791,1736284243989,-24154.52386,0.00022991,10]
[348053792,1736284244000,-5531.26717074,0.00022991,10]
[348053793,1736284244012,-815.44877714,0.00022991,10]
[348053794,1736284244025,-750.648911,0.00022991,10]
[348053870,1736284246591,-500.0,0.00019973,2]
[348053871,1736284246601,-1000.0,0.00020521,2]
[348053872,1736284246610,-1000.0,0.00021522,2]
[348053873,1736284246620,-150.03,0.0002198,7]
[348053874,1736284246631,-14062.89519879,0.00022991,10]
[348053875,1736284246647,-10510.82736094,0.00022991,10]
[348053892,1736284336362,174.710166,0.00013973,2]
[348053906,1736285368943,174.020494,0.00013973,2]
[348053935,1736285431841,-797.55742428,0.000189,2]
[348053937,1736285431851,-300.0,0.00018999,2]
[348053939,1736285431860,-132.88802572,0.00019,2]
[348054494,1736285437705,-8119.25059361,0.00019,2]
[348054695,1736285439801,-6747.86138067,0.00019,2]
[348054697,1736285439810,-172.389,0.00019177,2]
[348054699,1736285439819,-447.75997569,0.00019177,2]
[348054701,1736285439828,-281.1248496,0.00019177,2]
[348054704,1736285439838,-194.033057,0.00019178,2]
[348054706,1736285439848,-429.63173704,0.00019178,2]
[348054940,1736285445753,-70.36826296,0.00019178,2]
[348054941,1736285445762,-500.0,0.00019178,2]
[348054943,1736285445772,-500.0,0.00019178,2]
[348054945,1736285445782,-500.0,0.00019178,2]
[348054947,1736285445792,-500.0,0.00019178,2]
[348054948,1736285445801,-500.0,0.00019178,2]
[348054950,1736285445811,-500.0,0.00019178,2]
[348054952,1736285445822,-331.13173693,0.00019178,2]
[348054953,1736285445834,-168.86826307,0.00019178,2]
[348054955,1736285445843,-500.0,0.00019178,2]
[348054957,1736285445853,-500.0,0.00019178,2]
[348054958,1736285445863,-500.0,0.00019178,2]
[348054960,1736285445872,-500.0,0.00019178,2]
[348054961,1736285445881,-500.0,0.00019178,2]
[348054962,1736285445891,-500.0,0.00019178,2]
[348054963,1736285445904,-294.7583025,0.00019178,2]
[348054964,1736285445914,-500.0,0.00019178,2]
[348054965,1736285445924,-500.0,0.00019178,2]
[348054966,1736285445933,-500.0,0.00019178,2]
[348054967,1736285445945,-500.0,0.00019178,2]
[348054968,1736285445955,-500.0,0.00019178,2]
[348054969,1736285445965,-500.0,0.00019178,2]
[348054970,1736285446087,-500.0,0.00019178,2]
[348054971,1736285446097,-500.0,0.00019178,2]
[348054972,1736285446107,-302.93243444,0.00019178,2]
[348054973,1736285446123,-197.06756556,0.00019178,2]
[348054974,1736285446134,-500.0,0.00019178,2]
[348054975,1736285446144,-500.0,0.00019178,2]
[348054976,1736285446154,-500.0,0.00019178,2]
[348054977,1736285446164,-500.0,0.00019178,2]
[348054978,1736285446173,-500.0,0.00019178,2]
[348054979,1736285446183,-500.0,0.00019178,2]
[348054980,1736285446191,-500.0,0.00019178,2]
[348054981,1736285446201,-500.0,0.00019178,2]
[348054982,1736285446210,-500.0,0.00019178,2]
[348054983,1736285446220,-500.0,0.00019178,2]
[348054984,1736285446230,-469.49313498,0.00019178,2]
[348054985,1736285446239,-500.0,0.00019178,2]
[348054986,1736285446248,-500.0,0.00019178,2]
[348054987,1736285446257,-500.0,0.00019178,2]
[348054988,1736285446267,-500.0,0.00019178,2]
[348054989,1736285446276,-500.0,0.00019178,2]
[348054990,1736285446285,-500.0,0.00019178,2]
[348054991,1736285446295,-500.0,0.00019178,2]
[348054992,1736285446303,-169.56493505,0.00019178,2]
[348054993,1736285446313,-500.0,0.00019178,2]
[348054994,1736285446322,-500.0,0.00019178,2]
[348054995,1736285446331,-500.0,0.00019178,2]
[348054996,1736285446341,-500.0,0.00019178,2]
[348054997,1736285446350,-500.0,0.00019178,2]
[348054998,1736285446360,-500.0,0.00019178,2]
[348054999,1736285446370,-500.0,0.00019178,2]
[348055000,1736285446379,-500.0,0.00019178,2]
[348055001,1736285446389,-500.0,0.00019178,2]
[348055002,1736285446398,-500.0,0.00019178,2]
[348055003,1736285446407,-500.0,0.00019178,2]
[348055004,1736285446416,-500.0,0.00019178,2]
[348055005,1736285446426,-500.0,0.00019178,2]
[348055006,1736285446436,-500.0,0.00019178,2]
[348055007,1736285446445,-500.0,0.00019178,2]
[348055008,1736285446454,-500.0,0.00019178,2]
[348055009,1736285446464,-500.0,0.00019178,2]
[348055010,1736285446473,-500.0,0.00019178,2]
[348055011,1736285446483,-500.0,0.00019178,2]
[348055012,1736285446493,-500.0,0.00019178,2]
[348055013,1736285446503,-500.0,0.00019178,2]
[348055014,1736285446513,-500.0,0.00019178,2]
[348055015,1736285446522,-500.0,0.00019178,2]
[348055016,1736285446531,-500.0,0.00019178,2]
[348055017,1736285446541,-266.70799484,0.00019178,2]
[348055018,1736285446550,-500.0,0.00019178,2]
[348055019,1736285446560,-500.0,0.00019178,2]
[348055020,1736285446569,-500.0,0.00019178,2]
[348055021,1736285446579,-500.0,0.00019178,2]
[348055022,1736285446588,-500.0,0.00019178,2]
[348055023,1736285446598,-500.0,0.00019178,2]
[348055024,1736285446607,-500.0,0.00019178,2]
[348055025,1736285446617,-500.0,0.00019178,2]
[348055026,1736285446626,-508.38734931,0.00019178,2]
[348055027,1736285446635,-500.0,0.00019178,2]
[348055028,1736285446645,-500.0,0.00019178,2]
[348055029,1736285446654,-500.0,0.00019178,2]
[348055030,1736285446663,-500.0,0.00019178,2]
[348055031,1736285446673,-500.0,0.00019178,2]
[348055032,1736285446682,-500.0,0.00019178,2]
[348055033,1736285446691,-500.0,0.00019178,2]
[348055034,1736285446700,-500.0,0.00019178,2]
[348055035,1736285446710,-500.0,0.00019178,2]
[348055036,1736285446719,-500.0,0.00019178,2]
[348055037,1736285446729,-500.0,0.00019178,2]
[348055038,1736285446738,-500.0,0.00019178,2]
[348055039,1736285446748,-500.0,0.00019178,2]
[348055040,1736285446757,-500.0,0.00019178,2]
[348055041,1736285446767,-500.0,0.00019178,5]
[348055042,1736285446777,-500.0,0.00019178,2]
[348055043,1736285446786,-500.0,0.00019178,2]
[348055044,1736285446796,-500.0,0.00019178,2]
[348055045,1736285446805,-500.0,0.00019178,2]
[348055046,1736285446814,-500.0,0.00019178,2]
[348055047,1736285446823,-500.0,0.00019178,2]
[348055048,1736285446832,-500.0,0.00019178,2]
[348055049,1736285446842,-500.0,0.00019178,2]
[348055050,1736285446851,-500.0,0.00019178,2]
[348055051,1736285446860,-500.0,0.00019178,2]
[348055052,1736285446869,-500.0,0.00019178,2]
[348055053,1736285446878,-500.0,0.00019178,2]
[348055054,1736285446888,-500.0,0.00019178,2]
[348055055,1736285446900,-500.0,0.00019178,2]
[348055056,1736285446910,-1332.7,0.00019178,2]
[348055057,1736285446919,-500.0,0.00019178,2]
[348055058,1736285446929,-500.0,0.00019178,2]
[348055059,1736285446939,-500.0,0.00019178,2]
[348055060,1736285446948,-500.0,0.00019178,2]
[348055061,1736285446957,-500.0,0.00019178,2]
[348055062,1736285446966,-500.0,0.00019178,2]
[348055063,1736285446978,-500.0,0.00019178,2]
[348055064,1736285446987,-500.0,0.00019178,2]
[348055065,1736285446997,-500.0,0.00019178,2]
[348055066,1736285447006,-500.0,0.00019178,2]
[348055067,1736285447015,-500.0,0.00019178,2]
[348055068,1736285447025,-500.0,0.00019178,2]
[348055069,1736285447034,-500.0,0.00019178,2]
[348055070,1736285447043,-500.0,0.00019178,2]